bitfinex/quotes_ETHUSD_20260305
["timestamp","ask_amount","ask_price","bid_price","bid_amount"]
[1772717036395,0.001,2125.1,2124.5,3.35628379]
[1772717038095,0.001,2125.1,2124.5,4.53302873]
[1772717039373,0.001,2125.1,2124.6,3.35408379]
[1772717039896,0.001,2125.1,2124.7,0.0022]
[1772717040305,1.17622849,2125.5,2124.8,3.35408379]
[1772717040476,1.17591721,2126.0,2124.8,3.35628379]
[1772717040796,1.1757513,2126.3,2125.0,3.35408379]
[1772717040998,3.16518639,2126.2,2125.0,3.35408379]
[1772717041496,3.16518639,2126.2,2125.1,0.0022]
[1772717041863,3.16518639,2126.2,2125.1,3.35628379]
[1772717042496,3.16518639,2126.0,2125.1,0.0022]
[1772717042704,1.1758619,2126.1,2124.5,4.53082392]
[1772717042705,3.16518639,2125.8,2124.5,4.53082392]
[1772717042896,3.16518639,2125.8,2124.6,0.0022]
[1772717043411,3.16518639,2125.6,2124.6,0.0022]
[1772717044206,1.676,2125.5,2124.6,0.0022]
[1772717044403,1.17630452,2125.3,2124.6,0.0022]
[1772717044887,3.16518639,2125.2,2124.6,0.0022]
[1772717045090,3.16518639,2125.2,2124.1,2.7366007]
[1772717045599,3.16518639,2125.2,2124.1,0.0011]
[1772717046396,3.16518639,2125.0,2124.1,0.0011]
[1772717046608,1.17652595,2124.9,2124.1,3.35518379]
[1772717047808,4.7057928,2125.1,2124.2,3.35408379]
[1772717048002,3.16518639,2125.5,2124.2,3.35408379]
[1772717048003,1.17624917,2125.4,2124.2,3.35408379]
[1772717048507,4.70442365,2125.7,2124.5,3.35408379]
[1772717049294,1.17608317,2125.7,2124.5,3.35408379]
[1772717049490,1.17608317,2125.7,2124.4,1.17680286]
[1772717049491,3.16518639,2125.6,2124.3,4.70721144]
[1772717049697,3.16518639,2125.6,2124.4,3.35408379]
[1772717050710,3.16518639,2125.4,2124.3,1.1768465]
[1772717050895,1.675,2125.4,2124.1,3.91353117]
[1772717051092,3.16518639,2125.3,2124.1,3.91353117]
[1772717051293,3.16518639,2125.3,2124.1,7.26761496]
[1772717051610,1.675,2125.4,2124.2,3.35408379]
[1772717051913,1.675,2125.4,2124.1,1.17803047]
[1772717051914,3.16518639,2125.4,2124.1,1.17803047]
[1772717052087,3.61413298,2125.5,2124.1,0.0011]
[1772717052088,3.16518639,2125.2,2124.1,0.0011]
[1772717052291,3.16518639,2125.0,2124.1,0.0011]
[1772717053015,3.16518639,2124.8,2124.1,0.0011]
[1772717054120,3.16518639,2124.6,2124.1,0.0011]
[1772717054507,3.16518639,2124.6,2123.9,0.0011]
[1772717054508,3.16518639,2124.2,2123.9,0.0011]
[1772717054714,5.95477002,2124.1,2123.9,0.0011]
[1772717055023,7.13168648,2124.0,2123.9,0.0011]
[1772717055320,7.13168648,2124.0,2123.6,0.0011]
[1772717055321,4.34221087,2124.0,2123.6,0.0011]
[1772717055919,3.16518639,2123.9,2123.6,0.0011]
[1772717056117,3.16518639,2123.9,2122.8,3.35518379]
[1772717056118,2.78718729,2123.8,2122.8,3.35518379]
[1772717056414,3.16518639,2123.8,2122.8,0.0011]
[1772717056715,1.676,2123.7,2122.8,0.0011]
[1772717057017,4.34243257,2123.6,2122.8,0.0011]
[1772717057221,3.16518639,2123.5,2122.8,0.0011]
[1772717058191,3.16518639,2123.5,2122.2,0.04711869]
[1772717058422,3.16518639,2123.4,2122.1,3.35408379]
[1772717058624,3.16518639,2123.4,2121.7,4.71318031]
[1772717058625,2.77647689,2123.3,2121.8,1.17820274]
[1772717058805,2.77647689,2123.3,2121.1,0.8220765]
[1772717058806,3.29821476,2122.7,2121.2,4.33739119]
[1772717058999,1.17780081,2122.6,2121.5,3.15881801]
[1772717059526,1.17778738,2122.7,2121.5,3.15881801]
[1772717059819,1.17778738,2122.7,2121.4,1.17846705]
[1772717059820,3.29821476,2122.6,2121.4,1.17846705]
[1772717060326,3.29821476,2122.6,2121.4,3.15881801]
[1772717060622,3.29821476,2122.4,2121.1,5.15949502]
[1772717060810,3.29821476,2122.4,2121.1,3.98089451]
[1772717060999,3.29821476,2122.4,2121.0,1.17866434]
[1772717061000,2.43793915,2121.8,2119.6,3.31357291]
[1772717061194,2.43793915,2121.8,2118.5,3.15881801]
[1772717061195,2.43793915,2120.7,2118.5,3.15881801]
[1772717061429,2.77079479,2121.0,2118.5,3.15881801]
[1772717061724,2.77079479,2121.0,2118.7,3.15881801]
[1772717061920,2.77079479,2121.0,2118.9,3.15881801]
[1772717062321,7.65500955,2121.0,2118.9,3.15881801]
[1772717062532,5.79322902,2120.9,2118.9,3.15881801]
[1772717062695,3.29821476,2120.8,2118.9,3.15881801]
[1772717062998,1.17885603,2120.7,2119.1,3.15881801]
[1772717063521,2.76785603,2120.7,2119.1,3.15881801]
[1772717063723,6.06607079,2120.7,2119.1,3.15881801]
[1772717064019,1.17885603,2120.7,2119.1,3.15881801]
[1772717064618,3.67375966,2120.9,2119.1,3.15881801]
[1772717064952,3.67375966,2120.9,2119.7,3.15881801]
[1772717064953,2.49501426,2120.9,2119.7,3.15881801]
[1772717065136,2.49501426,2120.9,2119.9,3.15881801]
[1772717066247,0.2457406,2121.1,2120.0,3.15881801]
[1772717066617,1.18243916,2121.4,2120.0,3.15881801]
[1772717066916,2.36090739,2121.4,2120.0,3.15881801]
[1772717067110,3.29821476,2121.2,2120.0,1.17923719]
[1772717067428,4.15508819,2121.1,2119.7,1.17941218]
[1772717067742,0.85687343,2121.0,2119.7,4.33823019]
[1772717067919,0.85687343,2121.0,2119.8,3.15881801]
[1772717068622,0.85687343,2121.0,2119.7,1.17941218]
[1772717068824,0.85687343,2121.0,2119.8,3.16524734]
[1772717069028,1.17874487,2120.9,2119.9,1.17930091]
[1772717069254,1.17874487,2120.9,2119.5,1.17952347]
[1772717069255,2.0356183,2120.9,2119.5,1.17952347]
[1772717069424,5.28883593,2120.9,2119.5,1.17952347]
[1772717070146,5.28883593,2120.9,2119.6,3.16524734]
[1772717070147,0.85687343,2120.9,2119.6,3.16524734]
[1772717070878,3.25321763,2120.8,2119.5,1.17952347]
[1772717071172,0.85687343,2120.9,2119.4,3.16524734]
[1772717071453,0.85687343,2120.9,2119.6,3.16524734]
[1772717071626,0.85687343,2120.9,2119.8,3.16524734]
[1772717073062,0.85687343,2120.9,2119.9,1.17930091]
[1772717073664,2.0356247,2120.9,2119.9,1.17930091]
[1772717073959,2.0356247,2120.9,2120.0,3.16524734]
[1772717073960,0.85687343,2120.9,2120.0,3.16524734]
[1772717074861,4.43154142,2121.7,2120.2,3.16524734]
[1772717075067,1.1784115,2121.5,2120.3,1.17907843]
[1772717075246,3.25321763,2121.4,2120.3,1.17907843]
[1772717075448,3.25321763,2121.4,2119.9,1.17930091]
[1772717076442,1.49459959,2121.5,2119.5,6.18273964]
[1772717076443,2.44678412,2121.1,2119.5,1.17946782]
[1772717076642,3.25321763,2121.0,2119.5,4.34471516]
[1772717076859,3.25321763,2121.0,2119.6,3.16524734]
[1772717077055,4.4319625,2120.9,2119.7,1.17941218]
[1772717077261,3.25321763,2120.8,2119.7,1.17941218]
[1772717077836,3.25321763,2120.8,2119.8,0.04717426]
[1772717078033,3.25321763,2120.8,2119.7,1.17941218]
[1772717078763,3.25321763,2120.8,2119.8,0.04717426]
[1772717078930,1.17874487,2120.9,2119.8,0.04717426]
[1772717079134,3.25321763,2121.2,2119.8,0.04717426]
[1772717079135,4.43185135,2121.1,2119.9,1.17930091]
[1772717079361,4.43185135,2121.1,2119.6,1.17946782]
[1772717079362,3.25321763,2121.0,2119.6,1.17946782]
[1772717079871,3.25321763,2121.0,2119.4,1.17957912]
[1772717080075,3.25321763,2121.0,2119.3,1.4101]
[1772717080076,3.25321763,2120.7,2119.3,1.18070048]
[1772717080772,3.25321763,2120.6,2119.4,0.04718316]
[1772717081280,3.25321763,2120.4,2119.4,1.17957912]
[1772717081582,3.25321763,2121.2,2119.5,3.16524734]
[1772717081779,3.25321763,2121.0,2119.8,0.0011]
[1772717082062,3.25321763,2121.0,2119.3,0.0011]
[1772717082063,0.001,2120.8,2119.3,0.0011]
[1772717082259,3.56970762,2120.7,2119.3,1.18072487]
[1772717082438,3.25321763,2120.5,2119.5,0.0011]
[1772717082633,0.001,2120.8,2119.5,0.0011]
[1772717082634,3.56945234,2120.4,2119.5,0.0011]
[1772717082837,0.31623471,2120.4,2119.5,0.0011]
[1772717083235,1.49530064,2120.4,2119.5,0.0011]
[1772717083466,4.74851827,2120.4,2119.5,0.0011]
[1772717084170,1.49530064,2120.4,2119.5,0.0011]
[1772717085268,3.25321763,2120.3,2119.5,0.0011]
[1772717085457,1.17911303,2120.3,2119.5,0.0011]
[1772717085660,0.31623471,2120.4,2119.5,0.0011]
[1772717086359,1.4952651,2120.4,2119.5,0.0011]
[1772717086556,1.49525887,2120.4,2119.5,0.0011]
[1772717086767,0.31623471,2120.4,2119.5,0.0011]
[1772717087261,1.49526044,2120.4,2119.5,0.0011]
[1772717087566,0.31623471,2120.4,2119.5,1.18062347]
[1772717088364,1.49526134,2120.4,2119.5,1.18062347]
[1772717089073,0.31623471,2120.4,2119.5,1.18062347]
[1772717089373,0.31623471,2120.4,2119.5,0.0011]
[1772717089374,1.4952576,2120.4,2119.5,0.0011]
[1772717089555,0.31623471,2120.4,2119.5,0.04828093]
[1772717090082,0.31623471,2120.4,2119.5,3.3565076]
[1772717090376,0.31623471,2120.4,2119.5,0.04780291]
[1772717090583,0.31623471,2120.4,2119.5,0.0011]
[1772717090768,0.31623471,2120.4,2119.5,0.04780291]
[1772717091065,0.31623471,2120.4,2119.5,3.3565076]
[1772717091265,1.49526028,2120.4,2119.5,3.3565076]
[1772717091437,1.49526028,2120.4,2119.6,1.17946782]
[1772717092356,0.31623471,2120.4,2119.6,1.17946782]
[1772717092853,1.49525986,2120.4,2119.6,1.17946782]
[1772717093166,0.31623471,2120.4,2119.6,1.17946782]
[1772717093466,1.49526049,2120.4,2119.6,1.17946782]
[1772717094245,1.49526049,2120.4,2119.7,0.0011]
[1772717094439,0.001,2120.2,2119.7,0.0011]
[1772717097389,1.17918966,2120.1,2119.7,0.0011]
[1772717097566,4.40055105,2120.2,2119.7,0.0011]
[1772717097941,4.40055105,2120.2,2119.5,0.0011]
[1772717097942,3.22037225,2120.1,2119.5,0.0011]
[1772717098554,0.001,2120.2,2119.5,0.0011]
[1772717098754,1.18013798,2120.2,2119.5,0.0011]
[1772717099545,0.001,2120.2,2119.7,5.0]
[1772717099744,0.001,2120.2,2119.7,6.17941184]
[1772717100385,0.001,2120.2,2119.7,5.0]
[1772717100590,3.22137225,2120.2,2119.7,5.0]
[1772717100755,3.22137225,2120.2,2119.5,0.0011]
[1772717100945,3.22037225,2119.8,2119.3,0.0011]
[1772717101467,3.22037225,2119.8,2118.8,0.0011]
[1772717101662,3.22037225,2119.8,2117.4,4.77222106]
[1772717101663,3.22037225,2119.8,2117.3,3.3554076]
[1772717101664,3.22037225,2119.0,2117.3,3.3554076]
[1772717101883,3.22037225,2118.8,2117.3,3.3554076]
[1772717102079,3.22037225,2118.6,2117.4,5.0044]
[1772717102285,3.22037225,2119.0,2117.5,3.3554076]
[1772717102477,3.22037225,2119.0,2117.7,3.3554076]
[1772717102660,3.72037225,2119.6,2117.7,3.3554076]
[1772717102868,3.72037225,2119.6,2117.6,1.405]
[1772717102869,3.22037225,2119.4,2117.9,3.3554076]
[1772717103064,1.17941218,2119.7,2117.9,3.3554076]
[1772717103371,3.22037225,2119.6,2118.3,3.3554076]
[1772717103576,4.71763861,2119.8,2118.3,3.3554076]
[1772717103577,3.22037225,2119.5,2118.5,1.18008024]
[1772717103881,5.69842413,2119.9,2118.5,4.53548784]
[1772717104082,5.69842413,2119.9,2118.6,5.0044]
[1772717104083,3.22037225,2119.6,2118.6,5.0044]
[1772717104385,3.22037225,2119.3,2117.6,4.53598939]
[1772717104590,3.22037225,2119.1,2117.6,4.53598939]
[1772717104886,2.22741354,2119.4,2117.7,4.98701064]
[1772717104887,5.99992554,2119.0,2117.7,4.98701064]
[1772717105053,3.22037225,2119.0,2117.7,4.98701064]
[1772717105585,3.22037225,2119.0,2117.8,1.18047029]
[1772717105586,1.17991315,2118.8,2117.8,1.18047029]
[1772717105765,4.4002854,2118.8,2117.8,1.18047029]
[1772717106090,4.4002854,2118.8,2117.9,1.63160304]
[1772717106260,6.6275319,2119.2,2117.9,1.63160304]
[1772717106580,4.40010059,2119.2,2118.0,3.3554076]
[1772717106754,0.001,2118.4,2118.0,4.7684076]
[1772717106952,5.9951563,2119.1,2118.1,1.63160304]
[1772717107160,3.22037225,2119.1,2117.8,3.04560304]
[1772717107369,1.17972834,2119.2,2117.9,3.3554076]
[1772717107584,1.17972834,2119.2,2118.0,1.63160304]
[1772717107585,3.22037225,2119.2,2118.0,1.63160304]
[1772717107771,3.22037225,2119.0,2118.0,1.63160304]
[1772717107975,2.77313298,2119.1,2118.0,1.63160304]
[1772717107976,3.22037225,2118.8,2118.0,1.63160304]
[1772717108176,3.22037225,2118.8,2117.6,1.18167715]
[1772717108393,3.22037225,2118.8,2117.7,1.63160304]
[1772717109984,1.17996884,2118.7,2117.7,1.63160304]
[1772717110293,3.22037225,2118.6,2117.7,1.63160304]
[1772717111021,3.22037225,2118.6,2115.3,7.15655404]
[1772717111022,0.2460515,2117.7,2116.7,0.32699708]
[1772717111302,0.2460515,2117.7,2117.1,0.0022]
[1772717112058,1.18058179,2117.6,2117.1,0.0022]
[1772717112261,1.42659712,2117.7,2117.1,0.0022]
[1772717112684,1.42659712,2117.7,2117.1,0.0011]
[1772717112685,4.64696937,2117.7,2117.1,0.0011]
[1772717112897,3.22037225,2117.6,2117.1,0.0011]
[1772717113586,1.42659712,2117.7,2117.2,0.0011]
[1772717113960,1.42659712,2117.7,2117.1,0.0011]
[1772717113961,4.64696937,2117.7,2117.1,0.0011]
[1772717114189,3.22037225,2117.6,2117.1,0.0011]
[1772717115665,3.22037225,2117.6,2116.1,4.72564098]
[1772717115666,3.22037225,2117.6,2116.4,0.003]
[1772717115866,3.22037225,2117.4,2116.4,0.003]
[1772717116180,3.22037225,2117.0,2116.4,0.003]
[1772717116382,0.5,2117.5,2116.4,0.003]
[1772717116689,1.1806933,2117.4,2116.4,0.003]
[1772717117394,1.18047029,2117.8,2116.4,3.3584076]
[1772717117589,4.72097549,2118.3,2116.4,3.3584076]
[1772717117590,1.18019166,2118.3,2116.4,3.3584076]
[1772717117970,4.40056391,2118.3,2116.6,3.3554076]
[1772717118177,3.22037225,2118.2,2116.7,1.18108376]
[1772717118492,3.22037225,2118.2,2116.8,3.3554076]
[1772717118795,3.22037225,2117.8,2116.4,0.003]
[1772717118979,3.42070797,2117.6,2116.4,0.003]
[1772717119790,3.42070797,2117.6,2116.6,0.0011]
[1772717120179,1.18063754,2117.5,2116.6,0.0011]
[1772717121799,3.4104682,2117.4,2116.6,0.0011]
[1772717122098,1.18063754,2117.5,2116.4,0.0041]
[1772717122099,1.18091639,2117.0,2116.4,0.0041]
[1772717122716,4.58692203,2117.0,2116.4,0.0041]
[1772717123015,1.18091639,2117.0,2116.4,0.0041]
[1772717123704,3.40262157,2116.9,2116.4,0.0041]
[1772717124207,4.58364953,2116.8,2116.4,0.0041]
[1772717124395,3.40262157,2116.7,2116.4,0.0041]
[1772717124591,1.18102796,2116.8,2116.4,0.0041]
[1772717124805,4.58026354,2116.8,2116.4,0.0041]
[1772717125127,3.39923558,2116.7,2116.4,0.0041]
[1772717125723,3.39923558,2116.7,2116.1,0.0011]
[1772717126232,4.72374129,2117.0,2116.1,0.0011]
[1772717126528,3.39586114,2116.9,2116.1,0.0011]
[1772717127516,3.39151558,2116.6,2115.9,0.83354608]
[1772717127688,4.91131915,2116.5,2115.9,0.83354608]
[1772717127895,0.5,2116.7,2115.9,0.83354608]
[1772717128218,3.18331915,2116.5,2115.9,0.83354608]
[1772717128778,1.18113956,2116.6,2115.9,0.83354608]
[1772717129303,2.44678412,2116.2,2115.3,0.1677283]
[1772717129477,3.18331915,2116.2,2115.3,0.1677283]
[1772717130212,3.18331915,2116.0,2115.3,1e-08]
[1772717130376,1.18141864,2116.1,2115.3,1e-08]
[1772717131408,4.36473779,2116.1,2115.3,1e-08]
[1772717131979,1.732,2116.0,2115.3,1e-08]
[1772717132225,1.18153031,2115.9,2115.3,1e-08]
[1772717132717,3.18331915,2115.8,2115.3,1e-08]
[1772717133005,3.18331915,2115.8,2115.6,0.0011]
[1772717133207,3.18331915,2115.8,2115.3,1e-08]
[1772717133415,1.18153031,2115.9,2114.0,3.22637031]
[1772717133416,5.63010327,2115.5,2114.0,3.22637031]
[1772717133578,1.734,2115.4,2114.0,3.22637031]
[1772717134178,2.91584218,2115.4,2114.2,3.22637031]
[1772717134983,3.18331915,2115.3,2113.2,5.92471415]
[1772717135183,3.18331915,2115.1,2113.4,3.22637031]
[1772717135423,1.735,2115.3,2113.4,3.22637031]
[1772717135580,1.735,2115.3,2113.3,1.18298395]
[1772717135581,1.735,2115.3,2113.6,3.22637031]
[1772717135783,1.18184218,2115.4,2113.6,3.22637031]
[1772717136051,3.18331915,2115.3,2113.6,3.22637031]
[1772717136258,1.18197721,2115.1,2113.7,1.18276008]
[1772717136539,1.18197721,2115.1,2113.8,3.22637031]
[1772717137739,4.36529636,2115.1,2113.8,3.22637031]
[1772717137955,6.10229636,2115.1,2113.8,3.22637031]
[1772717138107,3.18331915,2115.0,2113.3,3.22637031]
[1772717138306,3.18331915,2114.8,2113.3,3.22637031]
[1772717138534,1.18208898,2114.9,2112.9,4.73193583]
[1772717138535,3.18331915,2114.5,2113.0,1.19259046]
[1772717138735,3.18331915,2114.5,2113.1,3.22637031]
[1772717138933,0.5,2114.8,2113.1,3.22637031]
[1772717139142,3.18331915,2114.7,2113.1,3.22637031]
[1772717139711,1.738,2114.8,2113.1,3.22637031]
[1772717140112,1.18180958,2115.4,2113.1,3.22637031]
[1772717140308,4.36512873,2115.4,2113.3,3.22637031]
[1772717141014,4.36512873,2115.4,2113.5,3.22637031]
[1772717141213,1.18180958,2115.4,2113.5,3.22637031]
[1772717142250,1.18180958,2115.4,2113.5,3.17637031]
[1772717142539,3.18331915,2115.6,2113.7,3.22637031]
[1772717142934,4.72659098,2115.7,2113.7,3.22637031]
[1772717143552,4.72654577,2115.8,2113.9,3.22637031]
[1772717143732,1.18136282,2116.2,2114.3,3.22637031]
[1772717143939,1.18128791,2116.4,2114.5,3.22637031]
[1772717144139,4.36460706,2116.4,2114.6,3.22637031]
[1772717144351,4.36460706,2116.4,2114.8,3.22637031]
[1772717144559,1.18128791,2116.4,2114.8,3.22637031]
[1772717145146,3.18331915,2116.2,2114.7,1.18220078]
[1772717145472,3.18331915,2116.2,2114.5,4.40868291]
[1772717145473,3.18331915,2116.0,2114.5,4.40868291]
[1772717145635,3.18331915,2116.0,2114.5,3.22637031]
[1772717145636,2.75769056,2115.9,2114.5,3.22637031]
[1772717146266,3.18331915,2115.8,2114.5,3.22637031]
[1772717146467,3.18331915,2115.8,2114.2,2.69834384]
[1772717146468,1.181642,2115.7,2114.2,2.69834384]
[1772717146637,1.181642,2115.7,2114.1,3.22637031]
[1772717146638,3.18331915,2115.5,2114.1,4.40886271]
[1772717147038,3.18331915,2115.5,2114.2,3.22637031]
[1772717147488,2.923642,2115.7,2114.2,3.22637031]
[1772717147677,2.923642,2115.7,2114.1,1.1824924]
[1772717147678,1.181642,2115.7,2114.4,3.22637031]
[1772717148373,4.72656803,2115.8,2114.5,1.1823126]
[1772717148537,3.18331915,2115.6,2114.1,0.0011]
[1772717148744,2.75924829,2115.7,2114.1,0.0011]
[1772717148745,3.18331915,2115.4,2114.1,0.0011]
[1772717149068,3.18331915,2115.4,2114.1,3.21364299]
[1772717149248,2.760269,2115.3,2114.1,3.21364299]
[1772717150253,2.20201186,2115.7,2114.1,3.21364299]
[1772717150442,1.18169786,2115.6,2114.3,3.21254299]
[1772717151683,1.18169786,2115.6,2114.5,3.21254299]
[1772717151883,1.18268653,2115.7,2114.5,3.21254299]
[1772717152181,1.18265617,2115.7,2114.5,3.21254299]
[1772717152351,1.744,2116.4,2114.5,3.21254299]
[1772717152352,1.18156605,2115.9,2114.5,3.21254299]
[1772717152553,1.744,2116.4,2114.7,3.21254299]
[1772717152557,1.18130699,2116.3,2114.7,3.21254299]
[1772717153281,2.76786195,2116.2,2114.7,3.21254299]
[1772717153579,1.18130699,2116.3,2114.7,3.21254299]
[1772717154479,4.72522799,2116.7,2114.9,3.21254299]
[1772717154678,4.72422105,2116.8,2115.0,0.065536]
[1772717154876,4.72422105,2116.8,2116.6,1.0]
[1772717155077,4.72422105,2116.8,2115.7,3.21254299]
[1772717156579,8.01316189,2117.2,2115.8,1.18158616]
[1772717156785,6.05776413,2117.1,2115.8,1.18158616]
[1772717156964,6.05776413,2117.0,2115.8,1.18158616]
[1772717157155,2.7697141,2116.9,2115.8,1.18158616]
[1772717158057,2.7697141,2116.9,2115.3,3.21254299]
[1772717158058,3.2794355,2116.8,2115.3,3.21254299]
[1772717158258,2.7697141,2116.7,2115.3,3.21254299]
[1772717158468,2.7697141,2116.7,2115.4,1.18180958]
[1772717158469,10.77370785,2116.7,2115.4,1.18180958]
[1772717158697,3.95085366,2116.6,2115.4,1.18180958]
[1772717159013,6.65306173,2117.2,2115.5,3.21254299]
[1772717159213,7.49211308,2117.1,2115.5,3.21254299]
[1772717159518,4.7238887,2117.1,2115.5,3.21254299]
[1772717159886,2.7674692,2117.0,2115.5,3.21254299]
[1772717160087,6.02847586,2117.0,2115.5,3.21254299]
[1772717160309,3.26100666,2117.0,2115.5,3.21254299]
[1772717160511,1.18097217,2116.9,2115.5,3.21254299]
[1772717160689,0.001,2117.2,2115.7,3.21254299]
[1772717160895,1.18184293,2117.2,2115.7,3.21254299]
[1772717161087,0.001,2117.2,2115.7,3.21254299]
[1772717161588,10.5745774,2117.9,2115.8,3.27807899]
[1772717161918,1.18047029,2117.8,2115.8,3.27807899]
[1772717162410,1.18022937,2118.3,2116.8,3.21254299]
[1772717162611,0.001,2118.4,2117.2,3.21254299]
[1772717164690,0.001,2118.4,2117.4,3.21254299]
[1772717166027,0.001,2118.4,2117.5,3.21254299]
[1772717166619,9.67564494,2119.4,2117.5,3.21254299]
[1772717166620,4.71856155,2119.3,2117.6,3.21254299]
[1772717166821,3.20074104,2119.8,2117.6,3.21254299]
[1772717167020,7.91861095,2119.7,2117.8,3.21254299]
[1772717167225,3.20074104,2119.6,2117.9,4.64954299]
[1772717167424,3.20074104,2119.6,2118.0,1.437]
[1772717167634,3.20074104,2119.6,2118.0,4.64954299]
[1772717167935,4.71786991,2119.7,2118.1,3.21254299]
[1772717168104,4.71786991,2119.7,2118.3,3.21254299]
[1772717168708,4.71764872,2119.9,2118.5,3.21254299]
[1772717169259,4.71764872,2119.9,2118.7,3.21254299]
[1772717169548,4.71764872,2119.9,2118.7,3.20310389]
[1772717170634,4.71676868,2120.1,2118.8,4.39245614]
[1772717170806,4.71676868,2120.1,2118.8,3.21254299]
[1772717170807,7.89312361,2120.1,2118.8,3.21254299]
[1772717171103,3.17635493,2120.0,2118.6,1.18001898]
[1772717171305,3.17635493,2120.0,2118.7,3.21254299]
[1772717171506,4.71676868,2120.1,2118.7,3.21254299]
[1772717171741,4.71820092,2120.2,2118.7,3.21254299]
[1772717171917,7.88619796,2120.2,2118.7,3.21254299]
[1772717172123,3.16799704,2120.1,2118.7,4.65554299]
[1772717172348,3.16799704,2120.1,2118.7,3.21254299]
[1772717172648,1.17924528,2120.0,2118.8,1.17991315]
[1772717172949,1.17924528,2120.0,2118.9,3.21254299]
[1772717173437,1.17924528,2120.0,2118.8,1.17991315]
[1772717173668,0.001,2119.7,2118.8,1.17991315]
[1772717174560,0.001,2119.7,2118.8,4.39245614]
[1772717174761,0.001,2119.7,2118.9,3.21254299]
[1772717175546,1.17924528,2120.0,2118.9,3.21254299]
[1772717175956,1.17924528,2120.0,2118.9,4.65954299]
[1772717176766,4.71698113,2120.1,2119.1,4.3922891]
[1772717176964,4.71698113,2120.1,2119.1,1.17974611]
[1772717177165,4.71698113,2120.1,2119.2,3.21254299]
[1772717177400,1.17918966,2120.1,2119.2,3.21254299]
[1772717178076,4.71765958,2120.2,2119.2,3.21254299]
[1772717178274,1.18013612,2120.2,2119.2,3.21254299]
[1772717178445,1.18013612,2120.2,2119.4,3.21254299]
[1772717178646,1.18013612,2120.2,2119.1,1.17974611]
[1772717178647,1.18013612,2120.2,2119.1,2.62874611]
[1772717178847,0.001,2120.2,2119.1,2.62874611]
[1772717179261,0.001,2120.2,2119.1,2.62974611]
[1772717179864,0.001,2120.2,2119.1,5.90188523]
[1772717180375,0.001,2120.2,2118.9,1.451]
[1772717180376,3.08641397,2120.2,2118.9,1.451]
[1772717180879,3.08641397,2120.2,2118.9,4.72313912]
[1772717181273,1.17918966,2120.1,2118.9,4.72313912]
[1772717181675,3.08541397,2120.0,2118.6,1.453]
[1772717181880,3.08541397,2120.0,2118.4,3.27213912]
[1772717181881,3.08541397,2120.0,2118.5,3.27213912]
[1772717182274,3.08541397,2120.0,2118.5,4.72513912]
[1772717182486,1.50871354,2119.9,2118.5,4.72513912]
[1772717182690,3.08541397,2119.8,2118.5,4.72513912]
[1772717183094,3.08541397,2119.8,2118.5,3.27213912]
[1772717183297,1.17941218,2119.7,2118.5,4.45220818]
[1772717183798,3.08541397,2119.6,2118.3,1.455]
[1772717184171,3.08541397,2119.6,2118.3,2.63518946]
[1772717184476,3.08541397,2119.6,2118.3,1.455]
[1772717184683,3.08541397,2119.6,2118.3,2.63518705]
[1772717184894,3.08541397,2119.6,2118.3,2.63519144]
[1772717185095,3.08541397,2119.6,2118.3,1.455]
[1772717185298,3.07797387,2119.4,2118.2,2.53124953]
[1772717185674,3.07797387,2119.4,2118.1,4.45243688]
[1772717186288,3.07797387,2119.4,2118.5,0.0011]
[1772717187371,1.17963478,2119.3,2118.5,0.0011]
[1772717190096,2.98083628,2119.2,2118.5,0.0011]
[1772717191293,6.48053914,2119.4,2118.5,0.0011]
[1772717191294,4.71853914,2119.4,2118.5,1.18118024]
[1772717191475,4.71853914,2119.4,2118.6,2.98996803]
[1772717192101,4.71768052,2119.7,2118.6,2.98996803]
[1772717192301,2.77447544,2119.6,2118.6,2.98996803]
[1772717193506,1.17952347,2119.5,2118.7,4.16993687]
[1772717193683,4.71754121,2119.8,2118.8,2.98996803]
[1772717193876,1.17935654,2119.8,2118.8,2.98996803]
[1772717194408,4.71842617,2119.9,2118.8,2.98996803]
[1772717194409,0.001,2119.9,2118.8,2.98996803]
[1772717194611,0.001,2120.2,2118.9,2.98996803]
[1772717194771,1.18014035,2120.2,2118.9,2.98996803]
[1772717195311,0.001,2120.2,2118.9,2.98996803]
[1772717195600,0.001,2120.2,2119.1,2.98996803]
[1772717195985,0.001,2120.2,2119.2,2.98996803]
[1772717196199,2.78189413,2120.2,2119.2,2.98996803]
[1772717196404,2.78089413,2120.1,2119.2,2.98996803]
[1772717197424,2.98083628,2119.9,2118.8,2.98996803]
[1772717197598,2.78089413,2119.8,2118.8,2.98996803]
[1772717197797,2.78089413,2119.7,2118.8,2.98996803]
[1772717197992,2.98083628,2119.9,2118.8,2.98996803]
[1772717198225,2.77926523,2119.8,2118.8,2.98996803]
[1772717198406,2.77926523,2119.7,2118.8,2.98996803]
[1772717198604,2.98083628,2119.9,2118.8,2.98996803]
[1772717198925,2.77802742,2119.8,2118.8,2.98996803]
[1772717199095,2.77802742,2119.7,2118.8,2.98996803]
[1772717199293,6.34399938,2120.0,2118.8,2.98996803]
[1772717199496,5.75275829,2119.9,2118.8,4.16984278]
[1772717199697,2.77724017,2119.8,2118.8,4.16984278]
[1772717199898,2.77724017,2119.8,2118.8,4.17094278]
[1772717201619,1.17941218,2119.7,2118.8,4.17094278]
[1772717202011,2.77616962,2119.6,2118.8,2.99106803]
[1772717202212,1.17941218,2119.7,2118.9,2.98996803]
[1772717202933,1.18028577,2120.0,2118.9,2.98996803]
[1772717203226,2.19023598,2120.2,2118.9,2.98996803]
[1772717203227,0.001,2120.2,2118.9,2.98996803]
[1772717203605,0.001,2120.2,2119.1,2.98996803]
[1772717204110,1.17896722,2120.5,2119.2,2.98996803]
[1772717204317,1.17896722,2120.5,2119.4,2.98996803]
[1772717204517,4.71553468,2120.7,2119.4,2.98996803]
[1772717205043,2.77432818,2120.6,2119.4,2.98996803]
[1772717205331,2.77432818,2120.6,2119.0,1.17980179]
[1772717205332,2.77432818,2120.6,2119.6,2.98996803]
[1772717205543,1.17896722,2120.5,2119.6,5.61639]
[1772717205838,1.17896722,2120.5,2119.7,2.98996803]
[1772717206036,1.17984348,2120.8,2119.7,2.98996803]
[1772717206209,0.001,2120.8,2119.7,2.98996803]
[1772717208041,0.001,2120.8,2119.9,2.98996803]
[1772717210026,0.001,2120.8,2119.6,6.16476138]
[1772717210027,2.90195431,2120.8,2119.6,2.62642816]
[1772717210217,2.90195431,2120.8,2119.6,2.62646072]
[1772717210708,2.90195431,2120.8,2119.6,1.448]
[1772717210932,2.90195431,2120.8,2119.5,4.12864563]
[1772717211318,2.89467717,2120.6,2118.8,0.0011]
[1772717211523,2.89467717,2120.3,2118.8,4.13015972]
[1772717211842,2.88845814,2120.1,2118.8,2.95025445]
[1772717212153,6.83584973,2120.0,2118.8,2.95025445]